Cogmind - Beta 10.2 @@@ ROGUE MODE // 2021.10.19 @ 02:52:41 Player: Kom Result: Destroyed by G-34 Mercenary with Small Laser Performance ------------- Evolutions (0) 0 Regions Visited (1) 200 Robots Destroyed (1) 5 Value Destroyed (5) 5 Prototype IDs (0) 0 Alien Tech Used (0) 0 Bonus (0) 0 TOTAL SCORE: 210 Bonus ------- None Cogmind --------- Core Integrity 0/250 Matter 251/300 Energy 117/250 System Corruption 0% Temperature Cool (11) Movement Treading (160) Location -10/Materials Parts ------- > --- POWER (1) -------- Ion Engine > --- PROPULSION (2) --- Light Treads Light Treads > --- UTILITY (2) ------ Small Storage Unit > --- WEAPON (2) ------- Light Assault Rifle Grenade Launcher > --- INVENTORY (6) ---- (None) Peak State ------------ > --- POWER ------------ Ion Engine > --- PROPULSION ------- Aluminum Leg Aluminum Leg > --- UTILITY ---------- Small Storage Unit > --- WEAPON ----------- Assault Rifle Assault Rifle > --- INVENTORY -------- Light Assault Rifle [Rating: 6] Favorites ----------- Power Ion Engine Engine Ion Engine Propulsion Aluminum Leg Treads Light Treads Leg Aluminum Leg Utility Small Storage Unit Storage Small Storage Unit Weapon Assault Rifle Ballistic Gun Assault Rifle Launcher Grenade Launcher Build | -11 -10 ------- Run | Scr Mat Slots Evolved . | . . Power . | . . Propulsion . | . . Utility . | . . Weapon . | . . Parts Attached 11 | 9 2 Power 2 | 1 1 Engine 2 | 1 1 Core . | . . Reactor . | . . Propulsion 4 | 4 . Treads 2 | 2 . Leg 2 | 2 . Wheel . | . . Hover . | . . Flight . | . . Utility 1 | 1 . Device . | . . Storage 1 | 1 . Processor . | . . Hackware . | . . Protection . | . . Artifact . | . . Weapon 4 | 3 1 Energy Gun . | . . Energy Cannon . | . . Ballistic Gun 3 | 3 . Ballistic Cannon . | . . Launcher 1 | . 1 Special Weapon . | . . Impact Weapon . | . . Slashing Weapon . | . . Piercing Weapon . | . . Special Melee Weapon . | . . Unidentified Prototypes . | . . Parts Lost 5 | 5 . Power 1 | 1 . Propulsion 2 | 2 . Utility . | . . Weapon 2 | 2 . Highest Loss Streak 5 | 5 . Average Slot Usage (%) 57 | . 57 Treads 28 | . 28 Storage 14 | . 14 Ballistic Gun 14 | . 14 Naked Turns . | . . Heaviest Build 13 | 13 13 Greatest Support 40 | 40 40 Greatest Overweight (x) 4 | 4 . Average Overweight (x) 1 | 1 . Largest Inventory Capacity 6 | 6 6 Average Capacity 5 | 5 6 Most Carried 4 | 4 2 Average Carried 2 | 2 . Final Capacity 6 | 6 6 Final Carried 1 | 1 . Class Distribution -------------------- 100% | Mutant Dominant Class ---------------- Mutant | -10/Materials Resources | -11 -10 ----------- Run | Scr Mat Matter Collected 333 | 333 . Remotely . | . . Salvage Created 23 | 13 10 Parts 4 | . 4 Haulers Intercepted . | . . Recyclers Shooed . | . . Parts Field Recycled . | . . Retrieved Matter . | . . Parts Self-Destructed . | . . Prevented . | . . Kills | -11 -10 ------- Run | Scr Mat Combat Hostiles Destroyed 2 | 2 . Guns 2 | 2 . Classes Destroyed 2 | 1 1 Builder 1 | . 1 Assembled 2 | 2 . Best Kill Streak 1 | 1 1 Combat Bots Only 1 | 1 . Max Kills in Single Turn 1 | 1 1 Gunslinging . | . . Exploded . | . . Melee . | . . Uniques/NPCs Destroyed . | . . Combat | -11 -10 -------- Run | Scr Mat Damage Taken 987 | 964 23 Core 258 | 246 12 Absorbed by Shields . | . . Core Remaining (%) 1 | 1 . Volleys Fired 20 | 19 1 Largest 2 | 2 2 Hottest 50 | 40 50 Shots Fired 34 | 32 2 Gun 33 | 32 1 Cannon . | . . Launcher 1 | . 1 Special . | . . Kinetic 33 | 32 1 Thermal . | . . Explosive 1 | . 1 Electromagnetic . | . . Robot Hit Streak 7 | 7 4 Robot Miss Streak 4 | 4 . Penetration Max . | . . Secondary Targets . | . . Shots Hit Robots 20 | 18 2 Core Hits 7 | 6 1 Critical Hits . | . . Critical Kills . | . . Critical Parts Destroyed . | . . Melee Attacks . | . . Impact . | . . Slashing . | . . Piercing . | . . Sneak Attacks . | . . Combat Hostiles . | . . Follow-up Attacks . | . . Damage Inflicted 270 | 181 89 Guns 190 | 181 9 Cannons . | . . Explosions 80 | . 80 Melee . | . . Ramming . | . . Kinetic 190 | 181 9 Thermal . | . . Explosive 80 | . 80 Electromagnetic . | . . Impact . | . . Slashing . | . . Piercing . | . . Highest Corruption . | . . Average Corruption . | . . Corruption Purged . | . . Overload Shots . | . . Overflow Damage . | . . Projectiles . | . . Explosions . | . . Melee . | . . Knockbacks . | . . Impact . | . . Kinetic . | . . Secondary . | . . Self-Inflicted Damage . | . . Shots . | . . Rammed . | . . Targets Rammed . | . . Kicked . | . . Crushed . | . . Highest Temperature 8 | 8 5 Average Temperature 7 | 8 5 Received Heat Transfer 112 | 100 12 Siege Activations . | . . Robots Corrupted . | . . Combat Hostiles . | . . Parts Fried . | . . Impact Corruptions . | . . Robots Melted . | . . Combat Hostiles . | . . Parts Melted . | . . Heat Transferred . | . . Parts Sabotaged . | . . Parts Stolen . | . . Parts Stripped . | . . Power Chain Reactions . | . . Missiles Intercepted . | . . Alert | -11 -10 ------- Run | Scr Mat Peak Influence 5 | . 5 Initial . | . . Average . | . . Maximum Alert Level . | . . Low Security (%) 100 | 100 100 Level 1 . | . . Level 2 . | . . Level 3 . | . . Level 4 . | . . Level 5 . | . . High Security . | . . Max Security . | . . Squads Dispatched 1 | . 1 Investigation . | . . Extermination . | . . Reinforcement 1 | . 1 Assault . | . . Garrison . | . . Intercept . | . . Construction Impeded . | . . Haulers Reinforced . | . . Stealth | -11 -10 --------- Run | Scr Mat Distress Signals 1 | . 1 Communications Jammed . | . . Distress Signals . | . . Times Spotted 24 | 21 3 Peak Tracking Total 20 | 20 1 Tactical Retreats 1 | 1 . Traps | -11 -10 ------- Run | Scr Mat Traps Triggered . | . . Indirectly . | . . Trap Hack Attempts . | . . Triggered . | . . Disarmed . | . . Reprogrammed . | . . Reused . | . . Traps Extracted . | . . Installed . | . . Triggered . | . . Machines | -11 -10 ---------- Run | Scr Mat Machines Disabled . | . . Max in Single Turn . | . . Machines Sabotaged . | . . Garrisons Compromised . | . . Overloaded Fab Kills . | . . Fab Network Shutdowns . | . . Hacking | -11 -10 --------- Run | Scr Mat Machines Accessed . | . . Terminals . | . . Fabricators . | . . Repair Stations . | . . Recycling Units . | . . Scanalyzers . | . . Garrison Access . | . . Total Hacks . | . . Successful . | . . Failed . | . . Catastrophic . | . . Database Lockouts . | . . Manual . | . . Terminals . | . . Fabricators . | . . Repair Stations . | . . Recycling Units . | . . Scanalyzers . | . . Garrison Access . | . . Terminal Hacks . | . . Fabricator Hacks . | . . Repair Station Hacks . | . . Recycling Unit Hacks . | . . Scanalyzer . | . . Garrison Access Hacks . | . . Unauthorized Hacks . | . . Terminals . | . . Fabricators . | . . Repair Stations . | . . Recycling Units . | . . Scanalyzers . | . . Garrison Access . | . . Data Cores Recovered . | . . Used . | . . Hacking Detections . | . . Full Trace Events . | . . Feedback Events . | . . Feedback Blocked . | . . Robot Schematics Acquired . | . . Robots Built . | . . Matter . | . . Time . | . . Total Robot Build Rating . | . . Part Schematics Acquired . | . . Parts Built . | . . Matter . | . . Time . | . . Total Part Build Rating . | . . Parts Repaired . | . . Time . | . . Parts Recycled . | . . Recycled Matter . | . . Retrieved Matter . | . . Retrieved Components . | . . Parts Scanalyzed . | . . Part Schematics Acquired . | . . Parts Damaged . | . . Bothacking | -11 -10 ------------ Run | Scr Mat Used RIF Installer . | . . Robots Hacked . | . . Non-combat . | . . Combat . | . . Robot Hacks Applied . | . . Relay Couplers Released . | . . Robots Rewired . | . . Allies Hacked . | . . Hacks Repelled . | . . Allies | -11 -10 -------- Run | Scr Mat Total Allies . | . . Largest Group . | . . Highest-Rated Group . | . . Highest-Rated Ally . | . . Total Orders . | . . Ally Attacks . | . . Total Damage . | . . Kills . | . . Allies Corrupted . | . . Allies Melted . | . . Intel | -11 -10 ------- Run | Scr Mat Robot Analysis Total . | . . Derelict Logs Recovered . | . . Drone Launches . | . . Drone Recoveries . | . . Exploration | -11 -10 ------------- Run | Scr Mat Turns Passed 1708 | 1668 40 Spaces Moved 600 | 578 22 Core 422 | 422 . Treads 178 | 156 22 Legs . | . . Wheels . | . . Hover . | . . Flight . | . . Fastest Speed 50 | 50 160 Average Speed 153 | 153 160 Slowest Speed 250 | 250 160 Overloaded Moves . | . . Propulsion Burnouts . | . . Robots Hopped . | . . Cave-ins Triggered . | . . Exploration Rate (%) 37 | 62 12 Regions Visited 1 Branch Regions . Pre-discovered Areas . | . . Known Exits Taken . | . . Unknown Exits Taken 1 | 1 . Scrap Searched . | . . Spaces Dug . | . . Terrain Destroyed . | . . Melee . | . . Projectile . | . . AOE . | . . Terrain Rammed . | . . Walls Destroyed . | . . Machines Disabled . | . . Actions | -11 -10 --------- Run | Scr Mat Total 1353 | 1327 26 Wait 712 | 712 . Move 599 | 577 22 Hop . | . . Pick Up 11 | 10 1 Fast Attach . | . . Attach 11 | 9 2 Detach . | . . Swap . | . . Drop . | . . Fire 20 | 19 1 Melee . | . . Ram . | . . Kick . | . . Crush . | . . Escape Stasis . | . . Rewire . | . . Trap . | . . Miscellaneous . | . . Route ------- -11/Scrapyard -10/Materials History --------- Turn | Location | Event 4 | -11/Scrapyard | Discovered new exit (range 16) 1004 | -11/Scrapyard | Assembled infested the area 1064 | -11/Scrapyard | Core integrity fell below 50% 1064 | -11/Scrapyard | Core integrity fell below 20% 1094 | -11/Scrapyard | Lost 5 parts (1p2n2w) 1669 | -11/Scrapyard | Entered Materials 1670 | -10/Materials | Build established: Mutant 1709 | -10/Materials | Destroyed by G-34 Mercenary with Small Laser Last Messages --------------- 01123_ T-07 Excavator is excavating. 01318_ K-01 Serf collects debris. 01318_ T-07 Excavator is excavating. 01321_ K-01 Serf collects debris. 01387_ Acquired 11 matter. LOCATION=UNKNOWN GOAL=ESCAPE 01669_ ALERT: A rogue bot has emerged from the scrapyard. Terminate on contact. 01696_ O-16 Technician: "IFF HANDSHAKE FAILED. SECURING TERMINAL." 01696_ K-01 Serf collects debris. 01697_ O-16 Technician sends out distress signal. 01697_ O-16 Technician uses terminal to summon reinforcements. 01697_ ALERT: Hostiles spotted, dispatching reinforcements to Terminal M001. 01697_ O-16 Technician locks terminal. 01700_ Acquired Grenade Launcher. 01700_ K-01 Serf collects debris. 01708_ U-05 Engineer destroyed. 01709_ K-01 Serf collects debris. Map ----- +----------------------------------------------------+ | ?????????????????????????????????????????????????? | | ?????????????????????????????????????????????????? | | ?????????????????????????????????????????????????? | | ?????????????????????????????????????????????????? | | ?????????????????????????????????????????????????? | | ?????????????????????????????????????????????????? | | ?????????????????????????????????????????????????? | | ?????????????????????????????????????????????????? | | ?????????????????????????????????????????????????? | | ?????????????????????????????????????????????????? | | ?????????????????????????????????????????????????? | | ?????????????????????????????????????????????????? | | ?????????????????????????????????????????????????? | | ??????????#########??????????????????????????????? | | ??????????# #??????????????????????????????? | | ??????????# ######?????????????????????????? | | ??????????# ????????????????????? | | ??????????#### ########????????????????????????? | | ?????????????# #???????????????????????????????? | | ?????????????# #???????????????????????????????? | | ???####+###??# #???????????????????????????????? | | ???# ?# #????????????? #????????????????? | | ???? [ ?# #???????????? #????????????????? | | ????? # #######+#### #######??????????? | | ??????"" """ # ????????? | | ??????"" """ + u @ ????????? | | ??????"" """ # // ????????? | | ????? #### // r##########???????????? | | ???? ????# // #????????????????????? | | ????########????# k^ #????????????????????? | | ????????????????# #????????????????????? | | ????????????????# """= #????????????????????? | | ????????????????# """%! ""???????????????????? | | ????????????????# """g* Y"#??????????????????? | | ????????????????# o ""#??????????????????? | | ????????????????# ###??????????????????? | | ????????????????+ #????????????????????? | | ????????????????# ""T"" #????????????????????? | | ????????????????# """"" #????????????????????? | | ???????????????? #????????????????????? | | ????????????????? ?????? ????????????????????? | | ?????????????????###??????? ?????????????????????? | | ?????????????????????????????????????????????????? | | ?????????????????????????????????????????????????? | | ?????????????????????????????????????????????????? | | ?????????????????????????????????????????????????? | | ?????????????????????????????????????????????????? | | ?????????????????????????????????????????????????? | | | | | +----------------------------------------------------+ Best States ------------- Heat Dissipation 25 Energy Generation 5 Energy Capacity 250 Matter Stores 300 Matter Capacity 300 Sight Range 16 Terrain Scan Density 10 Evasion (%) 50 Recoil Reduction 2 Item Schematics ----------------- None Robot Schematics ------------------ None Fabricated ------------ Nothing Alien Tech Used ----------------- None Achievements -------------- Curiosity Killed The Cat Hunted Challenges ------------ None Game ------ Seed DamperReflectiveLog Manual? 0 Play Time 00:05:08 Cumulative 8.2 hours Start 2021.10.19 @ 02:47:35 End 2021.10.19 @ 02:52:41 Sessions 1 Manual Loads 0 Difficulty Rogue Special Mode None Game No. 16 Rogue 16 Adventurer 0 Explorer 0 Win Type - Total 0 Types 0/0/0/0/0/0/0/0/0 Lore% 7 Gallery% 15 Achievement% 5 Wizard Run 0 Options --------- ASCII 0 Keyboard 0 Movement Numpad Keybinds 0 Fullscreen 1 Font 24/Smallcaps Map View 76x50 Tactical HUD 1 Map Filters NONE Filters NONE Steam 1 RUN: dec188dd-c2d8-418e-86e1-ecb1ac71c0ad